bitfinex-derivatives/quotes_ETHF0:USTF0_20250520
["timestamp","ask_amount","ask_price","bid_price","bid_amount"]
[1747778259399,0.00596398,2515.3,2515.2,7.352825]
[1747778260004,0.00596398,2515.3,2515.2,7.67078682]
[1747778261097,42.1507,2516.0,2515.9,0.79463]
[1747778261407,0.99218745,2516.7,2516.1,1.9864]
[1747778261606,1.3338,2516.6,2516.5,0.79444]
[1747778262014,1.506178,2516.6,2516.5,2.18164]
[1747778262307,0.172378,2516.6,2516.5,2.18164]
[1747778263005,3.57216398,2516.8,2516.7,0.79438]
[1747778263312,3.57216398,2516.8,2516.7,3.2078]
[1747778263512,3.74454198,2516.8,2516.7,3.2078]
[1747778263710,3.74454198,2516.8,2516.7,4.00218]
[1747778265611,4.53888198,2516.8,2516.7,4.00218]
[1747778265910,3.74454198,2516.8,2516.7,4.00218]
[1747778267002,4.53888198,2516.8,2516.7,4.00218]
[1747778267711,3.74454198,2516.8,2516.7,4.00218]
[1747778267911,4.53888198,2516.8,2516.7,4.00218]
[1747778268212,3.74454198,2516.8,2516.7,4.00218]
[1747778270013,4.53888198,2516.8,2516.7,4.00218]
[1747778270205,4.62374675,2516.8,2516.7,4.00218]
[1747778270815,3.82940675,2516.8,2516.7,4.00218]
[1747778271310,2.70290675,2516.8,2516.7,4.00218]
[1747778272412,3.49724675,2516.8,2516.7,3.2078]
[1747778277916,0.79438,2516.7,2516.6,0.79439]
[1747778278111,2.266458,2516.7,2516.6,4.00219]
[1747778281508,2.266458,2516.7,2516.6,3.2078]
[1747778286423,2.35132277,2516.7,2516.6,3.2078]
[1747778287713,7.35132277,2516.7,2516.6,3.2078]
[1747778288221,7.35132277,2516.7,2516.6,3.52567497]
[1747778288419,2.35132277,2516.7,2516.6,3.52567497]
[1747778291020,2.35132277,2516.7,2516.6,3.80389503]
[1747778291224,2.35132277,2516.7,2516.6,0.59609503]
[1747778294025,0.79441,2516.6,2516.4,0.56094238]
[1747778294325,0.79447,2516.4,2516.3,0.57126969]
[1747778294515,0.966848,2516.4,2516.3,0.57126969]
[1747778294718,2.256848,2516.4,2516.3,0.57126969]
[1747778295725,2.256848,2516.4,2516.3,0.00596398]
[1747778300530,2.34171277,2516.4,2516.3,0.00596398]
[1747778302140,0.7946,2516.0,2515.9,3.2078]
[1747778302339,0.79469,2515.7,2515.6,3.2078]
[1747778302742,41.767068,2515.7,2515.6,3.2078]
[1747778303242,43.122668,2515.7,2515.6,3.2078]
[1747778308643,0.79476,2515.5,2515.4,1.30606398]
[1747778310946,0.967138,2515.5,2515.4,1.30606398]
[1747778311446,13.423138,2515.5,2515.4,1.30606398]
[1747778315750,13.50800277,2515.5,2515.4,1.30606398]
[1747778317847,12.71324277,2515.5,2514.7,13.25099]
[1747778318052,0.79491,2515.0,2514.9,6.7681]
[1747778320052,0.79491,2515.0,2514.9,7.08612823]
[1747778324555,0.967288,2515.0,2514.9,3.87832823]
[1747778324757,0.7951,2514.4,2514.3,3.77284301]
[1747778325061,0.967478,2514.4,2514.3,3.77284301]
[1747778325260,0.967478,2514.4,2514.3,0.56504301]
[1747778325562,0.7952,2514.1,2514.0,3.2078]
[1747778326062,0.7952,2514.1,2514.0,5.19662499]
[1747778327361,0.7952,2514.1,2514.0,1.98882499]
[1747778327862,0.79526,2513.9,2513.8,2.6785252]
[1747778328364,0.79526,2513.9,2513.8,4.6675052]
[1747778328561,0.79539,2513.5,2513.4,3.96150643]
[1747778328765,0.967768,2513.5,2513.4,0.75370643]
[1747778328963,13.408768,2513.5,2513.4,0.75370643]
[1747778329266,0.79545,2513.3,2513.2,0.94250414]
[1747778329453,0.967828,2513.3,2513.2,0.94250414]
[1747778329660,0.79555,2513.0,2512.8,1.2005]
[1747778329966,0.967928,2513.0,2512.9,2.68182534]
[1747778330151,0.967928,2513.0,2512.9,1.32002534]
[1747778330356,0.79561,2512.8,2512.7,0.00397597]
[1747778330958,2.19041,2512.8,2512.7,0.00397597]
[1747778331357,2.362788,2512.8,2512.7,0.00397597]
[1747778331558,0.7958,2512.2,2512.1,4.3158]
[1747778332064,0.7958,2512.2,2512.1,6.306125]
[1747778333066,0.7958,2512.2,2512.1,7.692725]
[1747778337871,0.968178,2512.2,2512.1,3.376925]
[1747778338066,0.79589,2511.9,2511.8,1.1865]
[1747778338265,0.79589,2511.9,2511.8,2.4992]
[1747778338466,0.79589,2511.9,2511.8,4.489765]
[1747778340368,0.79589,2511.9,2511.8,3.303265]
[1747778340569,0.968268,2511.9,2511.8,1.3127]
[1747778340769,0.00596398,2512.1,2511.8,8.500875]
[1747778340965,0.17834198,2512.1,2512.0,0.79586]
[1747778341270,0.00596398,2512.1,2512.0,0.79586]
[1747778341463,6.60643,2513.0,2512.2,1.98943]
[1747778341667,1.0879,2513.3,2512.6,5.19697]
[1747778341863,0.79556,2513.0,2512.9,0.79556]
[1747778342264,0.79556,2513.0,2512.9,2.785255]
[1747778342474,0.79553,2513.1,2513.0,0.79552]
[1747778342676,0.80146398,2513.2,2513.1,0.79551]
[1747778342968,0.00596398,2513.2,2513.1,0.79551]
[1747778343170,0.00596398,2513.2,2513.1,2.785045]
[1747778343361,0.00596398,2513.2,2513.1,10.056645]
[1747778343575,0.79538,2513.6,2513.1,9.261135]
[1747778343775,0.79538,2513.6,2513.5,0.79538]
[1747778344165,0.79534,2513.7,2513.6,0.79534]
[1747778344364,0.79534,2513.7,2513.6,2.15784]
[1747778344571,0.79534,2513.7,2513.6,4.14698]
[1747778345474,0.79531,2513.8,2513.6,4.14698]
[1747778345776,0.79531,2513.8,2513.7,1.3625]
[1747778346170,0.79531,2513.8,2513.7,3.35155999]
[1747778347171,0.79531,2513.8,2513.7,4.14687999]
[1747778347371,0.79531,2513.8,2513.7,3.35155999]
[1747778348375,0.00596398,2513.9,2513.8,0.79529]
[1747778348569,0.17834198,2513.9,2513.8,2.16199]
[1747778348769,0.17834198,2513.9,2513.8,4.15097]
[1747778348770,0.97360198,2513.9,2513.8,4.15097]
[1747778350073,0.80122398,2513.9,2513.8,4.15097]
[1747778350273,0.00596398,2513.9,2513.8,4.15097]
[1747778351470,0.80122398,2513.9,2513.8,4.15097]
[1747778351774,0.80122398,2513.9,2513.8,3.35568]
[1747778351977,0.80122398,2513.9,2513.8,4.15097]
[1747778354070,0.80122398,2513.9,2513.8,3.35568]
[1747778354265,0.80122398,2513.9,2513.8,4.15097]
[1747778355176,0.88608875,2513.9,2513.8,4.15097]
[1747778355478,0.88608875,2513.9,2513.8,1.98898]
[1747778355878,0.26320675,2513.9,2513.3,0.28105227]
[1747778356076,0.967788,2513.4,2513.3,0.28105227]
[1747778356580,0.967788,2513.4,2513.3,2.27042727]
[1747778357377,0.967788,2513.4,2513.3,1.989375]
[1747778357881,0.79551,2513.1,2513.0,1.07656227]
[1747778358378,0.79551,2513.1,2513.0,3.06617727]
[1747778358580,0.79551,2513.1,2513.0,2.785125]
[1747778358775,0.79551,2513.1,2513.0,3.10338592]
[1747778359280,0.967888,2513.1,2513.0,2.30787592]
[1747778359981,0.967888,2513.1,2513.0,0.31826092]
[1747778360685,0.79554,2513.0,2512.9,0.79557]
[1747778360884,2.313118,2513.0,2512.9,0.79557]
[1747778361077,2.313118,2513.0,2512.9,2.785265]
[1747778362482,2.313118,2513.0,2512.9,1.989695]
[1747778363686,0.7956,2512.8,2512.7,0.00596398]
[1747778363891,0.967978,2512.8,2512.7,0.00596398]
[1747778364380,2.253278,2512.8,2512.7,0.00596398]
[1747778369297,1.98913,2512.7,2512.1,0.79579]
[1747778369499,0.172378,2512.4,2512.2,0.79578]
[1747778369688,3.28748,2512.3,2512.2,0.79578]
[1747778369995,3.28748,2512.3,2512.2,2.78599]
[1747778370490,3.28748,2512.3,2512.0,1.69235227]
[1747778370491,0.79582,2512.1,2512.0,0.28701625]
[1747778370698,0.968198,2512.1,2512.0,0.28701625]
[1747778371085,0.968198,2512.1,2512.0,0.32435718]
[1747778372390,0.968198,2512.1,2512.0,0.00596398]
[1747778373396,2.330198,2512.1,2512.0,0.00596398]
[1747778375797,14.761198,2512.1,2512.0,0.00596398]
[1747778376091,14.761198,2512.1,2512.0,3.98e-06]
[1747778379197,19.761198,2512.1,2512.0,3.98e-06]
[1747778379398,33.194198,2512.1,2512.0,3.98e-06]
[1747778379898,0.79618,2511.0,2510.9,0.28105227]
[1747778380198,0.79627,2510.7,2510.6,0.56174319]
[1747778380395,3.2078,2510.7,2510.4,1.3748]
[1747778380593,3.74,2510.9,2510.5,0.79632]
[1747778380793,0.79629,2510.7,2510.6,1.3748]
[1747778381000,5.20424398,2511.0,2510.6,1.3748]
[1747778381001,0.79626,2510.8,2510.6,1.3748]
[1747778381198,0.79626,2510.8,2510.6,2.5155]
[1747778381395,3.21376398,2511.0,2510.6,5.303265]
[1747778381699,0.79624,2510.8,2510.7,1.3748]
[1747778382192,0.79624,2510.8,2510.7,3.36623499]
[1747778382596,0.00596398,2511.0,2510.8,0.79623]
[1747778382797,0.00596398,2511.0,2510.8,3.28453]
[1747778383002,0.79622,2510.9,2510.8,4.47962]
[1747778383797,0.00596398,2511.0,2510.8,4.47962]
[1747778383998,0.79621,2510.9,2510.8,4.47962]
[1747778387793,0.79621,2510.9,2510.8,4.47965999]
[1747778388192,0.96858402,2510.9,2510.8,1.3748]
[1747778388397,2.36798402,2510.9,2510.8,1.3748]
[1747778391599,0.96858402,2510.9,2510.8,1.3748]
[1747778394005,0.79621,2510.9,2510.8,1.3748]
[1747778394507,0.79621,2510.9,2510.8,3.36615999]
[1747778400305,0.79627,2510.7,2510.6,1.15028456]
[1747778400501,0.79627,2510.7,2510.6,0.00958456]
[1747778400703,0.00596398,2511.0,2510.7,0.79627]
[1747778400910,0.00596398,2511.0,2510.9,0.79621]
[1747778401315,0.00596398,2511.0,2510.9,4.10249]
[1747778401609,0.00596398,2511.0,2510.9,9.10249]
[1747778401810,0.00596398,2511.0,2510.9,12.31029]
[1747778402012,3.98e-06,2511.0,2510.9,12.31029]
[1747778402711,3.98e-06,2511.0,2510.9,12.62887983]
[1747778404611,3.98e-06,2511.0,2510.9,13.37799226]
[1747778408015,0.79588,2512.0,2511.9,0.79588]
[1747778408409,0.17237402,2512.0,2511.9,2.786365]
[1747778408609,0.17237402,2512.0,2511.9,3.10495483]
[1747778408811,1.51017402,2512.0,2511.9,3.10495483]
[1747778409009,2.30603402,2512.0,2511.9,3.10495483]
[1747778409316,1.51017402,2512.0,2511.9,3.10495483]
[1747778409816,2.30603402,2512.0,2511.9,3.10495483]
[1747778410726,2.30603402,2512.0,2511.9,0.31858983]
[1747778411420,0.79599,2511.6,2511.5,13.184]
[1747778411618,0.79599,2511.6,2511.5,15.1748]
[1747778412617,1.1652,2511.7,2511.6,0.79599]
[1747778412814,1.33757402,2511.7,2511.6,0.79599]
[1747778413011,1.56077402,2511.7,2511.6,2.786715]
[1747778413216,1.3884,2511.7,2511.6,2.786715]
[1747778413412,1.3884,2511.7,2511.6,4.090915]
[1747778414522,1.3884,2511.7,2511.6,3.10516847]
[1747778415322,2.18436,2511.7,2511.6,3.10516847]
[1747778415619,1.56077402,2511.7,2511.6,3.10516847]
[1747778415818,2.35673402,2511.7,2511.6,2.786715]
[1747778416214,1.56077402,2511.7,2511.6,2.786715]
[1747778416415,2.35673402,2511.7,2511.6,2.786715]
[1747778417624,0.79602,2511.5,2511.4,13.18203]
[1747778417923,0.96839402,2511.5,2511.4,13.18203]
[1747778418122,0.96839402,2511.5,2511.4,15.17291]
[1747778418324,2.28539402,2511.5,2511.4,15.17291]
[1747778418721,2.28539402,2511.5,2511.4,15.49137772]
[1747778418922,1.48937402,2511.5,2511.4,15.49137772]
[1747778420926,1.1286,2511.6,2511.5,0.79602]
[1747778421123,1.283,2511.8,2511.7,0.79596]
[1747778421325,1.283,2511.8,2511.7,2.786605]
[1747778421626,2.25129402,2511.8,2511.7,2.786605]
[1747778422628,1.45537402,2511.8,2511.7,2.786605]
[1747778423324,1.45537402,2511.8,2511.7,3.10507272]
[1747778423631,1.283,2511.8,2511.7,3.10507272]
[1747778423923,1.1348,2512.1,2512.0,0.79586]
[1747778424127,2.4891,2512.1,2512.0,0.79586]
[1747778424328,2.66147402,2512.1,2512.0,2.786265]
[1747778425430,3.45730402,2512.1,2512.0,2.786265]
[1747778425741,2.66147402,2512.1,2512.0,2.786265]
[1747778426245,3.45730402,2512.1,2512.0,5.994065]
[1747778426537,3.45730402,2512.1,2512.0,6.31246922]
[1747778426837,2.4891,2512.1,2512.0,6.31246922]
[1747778427044,0.00596398,2512.2,2512.1,0.79583]
[1747778427342,0.00596398,2512.2,2512.1,2.19303]
[1747778427639,0.00596398,2512.2,2512.1,4.183355]
[1747778427848,0.00596398,2512.2,2512.1,4.50175922]
[1747778428948,0.00596398,2512.2,2512.1,6.09516981]
[1747778429945,1.1254,2512.5,2512.4,0.79573]
[1747778430244,1.2898,2512.6,2512.5,0.7957]
[1747778430636,1.2898,2512.6,2512.5,2.78570999]
[1747778431344,1.13096398,2512.8,2512.7,0.79564]
[1747778431544,2.42076398,2512.8,2512.7,0.79564]
[1747778431741,2.42076398,2512.8,2512.7,2.78549]
[1747778432635,2.42076398,2512.8,2512.7,4.18869]
[1747778432836,2.42076398,2512.8,2512.7,4.50709422]
[1747778433232,3.388748,2512.8,2512.7,0.31840422]
[1747778436751,0.79564,2512.7,2512.6,0.79566]
[1747778436941,2.37331402,2512.7,2512.6,0.79566]
[1747778437448,0.79571,2512.6,2512.5,0.79568]
[1747778437642,0.17237402,2512.4,2512.3,12.38896398]
[1747778437845,0.96810402,2512.4,2512.3,0.80173398]
[1747778438342,0.96810402,2512.4,2512.3,1.12009959]
[1747778438540,0.17237402,2512.4,2512.3,1.12009959]
[1747778438841,0.96810402,2512.4,2512.3,1.12009959]
[1747778441150,0.96810402,2512.4,2512.3,0.32432959]
[1747778441851,0.96810402,2512.4,2512.3,1.12009959]
[1747778442150,0.96810402,2512.4,2512.3,0.80173398]
[1747778442847,0.79573,2512.4,2512.3,0.80173398]
[1747778443051,0.96810402,2512.4,2512.3,0.00596398]
[1747778443843,0.17237402,2512.4,2512.3,0.00596398]
[1747778444047,0.00596398,2512.8,2512.6,0.79564]
[1747778444253,0.17237402,2512.4,2512.3,4.00953398]
[1747778444552,1.2783,2512.6,2512.5,0.7957]
[1747778444951,1.45067402,2512.6,2512.5,0.7957]
[1747778445655,2.24634402,2512.6,2512.5,1.11404214]
[1747778445952,1.45067402,2512.6,2512.5,1.11404214]
[1747778447458,2.24634402,2512.6,2512.5,1.11404214]
[1747778449553,1.2783,2512.6,2512.5,3.10405213]
[1747778450559,0.00596398,2512.8,2512.7,0.79564]
[1747778450754,0.178338,2512.8,2512.7,0.79564]
[1747778451352,0.973948,2512.8,2512.7,0.79564]
[1747778451552,2.362148,2512.8,2512.7,0.79564]
[1747778452258,2.362148,2512.8,2512.7,1.11398214]
[1747778454956,0.178338,2512.8,2512.7,1.11398214]
[1747778455164,0.178338,2512.8,2512.7,3.10383214]
[1747778455362,0.00596398,2512.8,2512.7,3.10383214]
[1747778455961,0.00596398,2512.8,2512.7,8.10383214]
[1747778456261,0.00596398,2512.8,2512.7,8.6678812]
[1747778458057,0.00596398,2512.8,2512.7,8.10383214]
[1747778458365,0.00596398,2512.8,2512.7,3.10383214]
[1747778461062,0.00596398,2512.8,2512.7,28.88683214]
[1747778461273,0.00018191,2512.8,2512.7,28.88683214]
[1747778463360,0.00018191,2512.8,2512.7,29.45199841]
[1747778464370,0.00018191,2512.8,2512.7,16.02299841]
[1747778464670,0.00018191,2512.8,2512.7,29.44999841]
[1747778465265,0.00018191,2512.8,2512.7,28.88483214]
[1747778466364,0.00018191,2512.8,2512.7,33.88483214]
[1747778466770,1.374,2513.6,2513.5,0.79539]
[1747778466989,1.374,2513.9,2513.8,0.79529]
[1747778467463,1.54637402,2513.9,2513.8,2.78427]
[1747778468268,0.66260971,2514.1,2514.0,0.79523]
[1747778468474,0.83498373,2514.1,2514.0,13.14723]
[1747778468776,0.83498373,2514.1,2514.0,15.13605499]
[1747778469072,0.66260971,2514.1,2514.0,15.13605499]
[1747778469465,0.66260971,2514.1,2514.0,15.53692025]
[1747778470076,0.66260971,2514.1,2514.0,16.13716444]
[1747778470573,0.00596398,2514.1,2514.0,17.41796444]
[1747778471077,0.00596398,2514.1,2514.0,3.38429918]
[1747778471571,0.00596398,2514.1,2514.0,4.38319713]
[1747778472676,0.00596398,2514.1,2514.0,30.14219713]
[1747778475567,0.00596398,2514.1,2514.0,30.14019713]
[1747778477671,0.00596398,2514.1,2514.0,28.15137214]
[1747778477975,0.00596398,2514.1,2514.0,30.14019713]
[1747778479474,1.2434,2514.7,2514.6,0.79504]
[1747778479771,1.41577402,2514.7,2514.6,0.79504]
[1747778479964,1.2434,2514.7,2514.6,2.78339]
[1747778480170,1.1764,2514.9,2514.8,0.79497]
[1747778480372,3.2078,2515.3,2515.2,0.79485]
[1747778480769,3.38017402,2515.3,2515.2,0.79485]
[1747778481177,0.17237402,2515.3,2515.2,0.79485]
[1747778482071,1.50977402,2515.3,2515.2,0.79485]
[1747778482775,1.50977402,2515.3,2515.2,15.115725]
[1747778483382,1.18746398,2515.5,2515.4,0.79479]
[1747778483683,2.52486398,2515.5,2515.4,0.79479]
[1747778483884,2.697238,2515.5,2515.4,0.79479]
[1747778488285,1.34336398,2515.5,2515.4,2.782505]
[1747778488984,1.34336398,2515.5,2515.4,4.119505]
[1747778489185,1.34336398,2515.5,2515.4,2.782505]
[1747778489385,1.34336398,2515.5,2515.4,28.529505]
[1747778489690,1.34336398,2515.5,2515.4,29.866505]
[1747778490093,0.58441434,2516.0,2515.9,0.79463]
[1747778490387,1.37954,2516.0,2515.9,13.12363]
[1747778490589,1.55191402,2516.0,2515.9,15.11095]
[1747778491088,1.2986,2516.0,2515.9,15.11095]
[1747778491281,1.2986,2516.0,2515.9,16.32925]
[1747778491479,1.2986,2516.0,2515.9,2.78195]
[1747778492689,1.2986,2516.0,2515.9,16.19695]
[1747778492893,1.47097402,2516.0,2515.8,0.79464]
[1747778493090,0.79469,2515.8,2515.7,0.79467]
[1747778493287,0.17237402,2515.6,2515.5,16.32955]
[1747778493681,0.17237402,2515.6,2515.5,18.31718499]
[1747778495091,0.25723879,2515.6,2515.5,18.31718499]
[1747778495382,0.25723879,2515.6,2515.5,5.99018499]
[1747778495588,0.25723879,2515.6,2515.5,31.73118499]
[1747778496590,1.59813879,2515.6,2515.5,31.73118499]
[1747778497790,1.59813879,2515.6,2515.5,5.99018499]
[1747778497989,1.59813879,2515.6,2515.5,32.04911872]
[1747778499192,1.59813879,2515.6,2515.5,16.64648373]
[1747778504792,1.59813879,2515.6,2515.5,16.92838578]
[1747778505487,1.42576477,2515.6,2515.5,16.92838578]
[1747778505695,1.59813879,2515.6,2515.5,16.92838578]
[1747778507206,1.59813879,2515.6,2515.5,18.89802077]
[1747778508293,1.59813879,2515.6,2515.5,18.99206123]
[1747778509293,1.59813879,2515.6,2515.5,17.00442624]
[1747778509694,0.08486477,2515.6,2515.5,19.18014575]
[1747778511098,0.08486477,2515.6,2515.5,6.87214575]
[1747778511296,0.25723879,2515.6,2515.5,4.88451076]
[1747778511691,1.59553879,2515.6,2515.5,4.88451076]
[1747778512093,1.59553879,2515.6,2515.5,1.67671076]
[1747778513091,1.59553879,2515.6,2515.5,1.11268373]
[1747778513903,6.59553879,2515.6,2515.5,1.11268373]
[1747778514493,1.59553879,2515.6,2515.5,1.11268373]
[1747778515096,7.39025879,2515.6,2515.5,0.31793373]
[1747778515403,0.79479,2515.4,2515.3,0.28255471]
[1747778515608,0.96716402,2515.4,2515.3,1.07737471]
[1747778515804,5.96716402,2515.4,2515.3,1.07737471]
[1747778516003,8.51006402,2515.4,2515.3,1.07737471]
[1747778516704,8.51006402,2515.4,2515.3,0.79482]
[1747778518099,0.79485,2515.3,2515.2,0.79482]
[1747778518301,2.12705,2515.3,2515.2,0.79482]
[1747778518603,2.29942402,2515.3,2515.2,0.79482]
[1747778520906,6.50457402,2515.3,2515.0,0.00596398]
[1747778521205,0.79497,2514.8,2514.7,0.28255471]
[1747778521401,0.79507,2514.5,2514.4,0.56402703]
[1747778521604,0.96744402,2514.5,2514.4,0.56402703]
[1747778521798,9.17524402,2514.5,2514.4,0.56402703]
[1747778522302,8.38017402,2514.5,2514.2,0.00596398]
[1747778522508,1.98792,2514.2,2513.5,0.56402703]
[1747778522799,0.96772402,2513.6,2513.5,0.56402703]
[1747778523403,7.33542402,2513.6,2513.5,0.56402703]
[1747778523605,0.79542,2513.4,2513.3,0.00596398]
[1747778523802,0.79545,2513.3,2513.2,0.75236017]
[1747778523996,2.67707402,2513.3,2512.9,1.73307009]
[1747778524202,0.17237402,2513.0,2512.9,1.73307009]
[1747778524406,0.96791402,2513.0,2512.9,0.93752009]
[1747778524606,0.79559,2512.9,2512.7,0.79564]
[1747778524806,0.17237402,2512.7,2512.6,1.35991398]
[1747778525218,2.25281402,2512.7,2512.6,0.56426398]
[1747778525514,1.45717402,2512.7,2512.6,1.35993398]
[1747778525710,6.45717402,2512.7,2512.6,1.35993398]
[1747778525911,0.7957,2512.5,2512.4,3.39056261]
[1747778526098,15.69417402,2512.5,2512.2,3.24028132]
[1747778526408,0.96814402,2512.3,2512.2,3.24028132]
[1747778526998,1.2848,2512.4,2512.3,0.79577]
[1747778527406,12.314,2512.9,2512.4,1.9893]
[1747778527704,1.46927402,2512.8,2512.7,0.79564]
[1747778528007,3.21376398,2513.1,2513.0,0.79554]
[1747778528205,4.683038,2513.1,2513.0,0.79554]
[1747778531322,0.00596398,2513.1,2513.0,2.785155]
[1747778531503,40.093,2514.2,2513.7,0.79532]
[1747778531504,1.3733,2513.8,2513.7,0.79532]
[1747778531906,43.0602,2514.1,2514.0,0.79523]
[1747778532206,43.379,2514.1,2514.0,0.79523]
[1747778532401,1.54567402,2514.1,2514.0,0.79523]
[1747778532705,0.79526,2513.9,2513.8,2.07953398]
[1747778532909,0.96763402,2513.9,2513.8,0.00596398]
[1747778533212,0.17237402,2513.9,2513.8,0.80125398]
[1747778533714,1.45787402,2513.9,2513.8,0.80125398]
[1747778536415,0.17237402,2513.9,2513.8,0.80125398]
[1747778538424,1.3937,2514.1,2514.0,0.79523]
[1747778538628,1.56607402,2514.1,2514.0,0.79523]
[1747778539215,0.17237402,2514.1,2514.0,0.79523]
[1747778539425,0.17237402,2514.1,2514.0,1.79893]
[1747778539818,0.17237402,2514.1,2514.0,3.12353]
[1747778540926,0.00596398,2514.3,2514.2,0.79516]
[1747778541328,0.00596398,2514.3,2514.2,2.783825]
[1747778541520,0.00596398,2514.3,2514.2,5.991625]
[1747778542026,0.00596398,2514.3,2514.2,7.309825]
[1747778546329,3.98e-06,2514.3,2514.2,12.62790422]
[1747778547648,12.295,2515.8,2515.7,0.79469]
[1747778547937,40.088,2516.0,2515.8,0.79466]
[1747778547938,15.11475,2515.9,2515.8,0.79466]
[1747778548138,2.81975,2515.9,2515.8,0.79466]
[1747778548339,20.28712402,2515.9,2515.8,0.79466]
[1747778548631,7.01160402,2515.9,2515.8,0.79466]
[1747778548840,19.30660402,2515.9,2515.8,0.79466]
[1747778549030,20.69530402,2515.9,2515.8,0.79466]
[1747778549231,19.90067402,2515.9,2515.8,0.79466]
[1747778549635,8.40030402,2515.9,2515.7,0.79466]
[1747778549936,0.79466,2515.8,2515.7,0.79466]
[1747778550132,2.35573402,2515.8,2515.7,0.79466]
[1747778550732,0.17237402,2515.8,2515.7,0.79466]
[1747778550938,0.17237402,2515.8,2515.7,2.18286]
[1747778552936,0.96703402,2515.8,2515.7,2.18286]
[1747778553241,0.96703402,2515.8,2515.7,1.3882]
[1747778554227,0.79469,2515.7,2515.6,0.00596398]
[1747778554430,2.32166402,2515.7,2515.6,0.00596398]
[1747778554629,0.79488,2515.1,2515.0,1.1128342]
[1747778554835,0.17237402,2515.1,2514.8,0.79496]
[1747778555141,0.17237402,2514.9,2514.8,0.79496]
[1747778555840,1.52697402,2514.9,2514.8,0.79496]
[1747778558542,0.96733402,2514.9,2514.8,0.79495]
[1747778558741,3.29143402,2514.9,2514.8,0.79495]
[1747778559145,3.2078,2515.2,2514.8,1.98819]
[1747778559340,2.08459,2515.1,2515.0,0.79488]
[1747778559535,1.2897,2515.1,2515.0,0.79488]
[1747778562248,2.08458,2515.1,2515.0,0.79488]
[1747778563047,0.79496,2514.9,2514.8,0.79493]
[1747778563252,0.79496,2514.9,2514.7,0.79498]
[1747778563253,0.79501,2514.8,2514.7,0.79498]
[1747778563438,0.79501,2514.7,2514.6,0.80100398]
[1747778563644,0.96738402,2514.7,2514.6,0.80100398]
[1747778563838,2.25358402,2514.7,2514.6,0.80100398]
[1747778564247,3.27728402,2514.7,2514.6,0.80100398]
[1747778564747,3.27728402,2514.7,2514.6,1.11906079]
[1747778567352,3.27728402,2514.7,2514.6,0.32402079]
[1747778568551,3.27728402,2514.7,2514.6,0.00596398]
[1747778569953,1.98786,2514.3,2513.9,1.16779757]
[1747778570255,0.96757402,2514.1,2514.0,0.37256757]
[1747778570746,3.125,2514.1,2514.0,0.37256757]
[1747778571150,0.79526,2513.9,2513.8,0.80124398]
[1747778571354,0.79526,2513.9,2513.8,0.00596398]
[1747778572550,0.79526,2513.9,2513.8,0.3241468]
[1747778573443,0.96763402,2513.9,2513.8,0.3241468]
[1747778574452,0.96763402,2513.9,2513.8,0.00596398]
[1747778575053,0.96763402,2513.9,2513.8,0.80125398]
[1747778575252,0.96763402,2513.9,2513.8,0.00596398]
[1747778576450,0.96763402,2513.9,2513.8,0.80125398]
[1747778576852,0.96763402,2513.9,2513.8,0.00596398]
[1747778580455,13.24763402,2513.9,2513.8,0.00596398]
[1747778580652,0.79539,2513.5,2513.4,1.0736]
[1747778580856,0.96776402,2513.5,2513.4,1.0736]
[1747778581057,0.79542,2513.4,2513.3,4.00322]
[1747778581358,2.24059402,2513.4,2513.3,3.2078]
[1747778581656,2.06822,2513.4,2513.3,3.2078]
[1747778582758,2.06822,2513.4,2513.3,4.00325]
[1747778583655,5.19616,2513.7,2513.6,0.79535]
[1747778583656,4.00315,2513.7,2513.6,0.79535]
[1747778583958,2.87579,2514.2,2514.1,0.7952]
[1747778584257,2.35276402,2514.2,2514.1,0.7952]
[1747778585254,0.79532,2513.7,2513.6,0.31817527]
[1747778585456,0.96769402,2513.7,2513.6,0.31817527]
[1747778586155,2.34099402,2513.7,2513.6,0.31817527]
[1747778587162,1.54567402,2513.7,2513.3,3.62425252]
[1747778587359,0.79541,2513.5,2513.4,0.79538]
[1747778587657,0.79541,2513.5,2513.4,2.15278]
[1747778587859,0.79541,2513.5,2513.4,4.14208]
[1747778588857,0.79541,2513.5,2513.4,4.4602818]
[1747778589652,0.96778402,2513.5,2513.4,0.3182018]
[1747778590361,2.30508402,2513.5,2513.4,0.3182018]
[1747778590564,0.79551,2513.1,2513.0,1.07729252]
[1747778590766,0.79551,2513.1,2513.0,4.28509252]
[1747778590962,0.79551,2513.1,2513.0,6.27470752]
[1747778591660,0.79551,2513.1,2513.0,7.60880752]
[1747778592163,0.79551,2513.1,2513.0,4.40100752]
[1747778592963,0.79551,2513.1,2513.0,4.43751082]
[1747778595266,0.79551,2513.1,2513.0,3.64197082]
[1747778595465,0.79551,2513.1,2513.0,0.31825582]
[1747778596068,0.79551,2513.1,2513.0,1.11379582]
[1747778597664,0.79551,2513.1,2513.0,0.31825582]
[1747778598775,0.96788402,2513.1,2513.0,0.60000834]
[1747778599360,5.46028402,2513.1,2513.0,0.60000834]
[1747778600067,5.46028402,2513.1,2513.0,0.31825582]
[1747778600265,17.72928402,2513.1,2513.0,0.31825582]
[1747778600567,17.81414879,2513.1,2513.0,0.31825582]
[1747778601263,17.81414879,2513.1,2512.4,0.37256757]
[1747778601264,0.7957,2512.5,2512.4,0.37256757]
[1747778601462,0.96807402,2512.5,2512.4,0.37256757]
[1747778602367,2.29887402,2512.5,2512.4,0.37256757]
[1747778602573,0.7958,2512.2,2512.1,3.25142]
[1747778602872,0.96817402,2512.2,2512.1,1.0594]
[1747778604177,0.79583,2512.1,2512.0,0.37256757]
[1747778604366,2.27870402,2512.1,2512.0,0.37256757]
[1747778604566,0.79586,2512.0,2511.9,0.37256757]
[1747778604766,2.27873402,2512.0,2511.9,0.37256757]
[1747778605270,5.48653402,2512.0,2511.9,0.37256757]
[1747778605884,0.79592,2511.8,2511.7,1.0369]
[1747778606085,0.96829402,2511.8,2511.7,1.0369]
[1747778607583,0.17237402,2511.8,2511.5,2.1293]
[1747778607781,0.79602,2511.5,2511.4,4.2227]
[1747778607978,0.96839402,2511.5,2511.4,5.01874]
[1747778608286,2.36829402,2511.5,2511.4,3.2078]
[1747778615790,2.45315879,2511.5,2511.4,3.2078]
[1747778625499,2.28078477,2511.5,2511.4,3.2078]
[1747778625693,2.45315879,2511.5,2511.4,3.2078]